bitfinex-derivatives/quotes_BTCF0:USTF0_20230402
["timestamp","ask_amount","ask_price","bid_price","bid_amount"]
[1680406724452,0.3007,28531.0,28530.0,0.05]
[1680406724648,0.3007,28531.0,28529.0,0.0877]
[1680406725860,0.3007,28531.0,28530.0,0.001]
[1680406726560,0.3007,28531.0,28529.0,0.0887]
[1680406727059,0.3007,28531.0,28530.0,0.001]
[1680406727462,0.3007,28531.0,28529.0,0.0887]
[1680406728463,0.3007,28531.0,28530.0,0.001]
[1680406728664,0.3007,28531.0,28530.0,0.051]
[1680406728860,0.3007,28531.0,28530.0,0.001]
[1680406729453,0.3007,28531.0,28529.0,0.0887]
[1680406729862,0.3007,28534.0,28530.0,0.4387]
[1680406730055,0.3007,28535.0,28533.0,0.0876]
[1680406730255,0.3007,28535.0,28534.0,0.05]
[1680406730759,0.3007,28535.0,28533.0,0.0876]
[1680406731156,0.0877,28537.0,28534.0,0.05]
[1680406732359,0.0877,28537.0,28534.0,0.052]
[1680406733964,0.3007,28538.0,28536.0,0.0877]
[1680406734164,0.0005628,28540.0,28536.0,0.3884]
[1680406734367,0.0005628,28540.0,28537.0,0.05]
[1680406735470,0.0005628,28540.0,28537.0,0.052]
[1680406735965,0.0005628,28540.0,28539.0,0.0877]
[1680406737361,0.0005628,28540.0,28539.0,0.0897]
[1680406747471,0.0005628,28540.0,28539.0,0.0896058]
[1680406749176,0.0005628,28540.0,28539.0,0.0876058]
[1680406749374,0.0005628,28540.0,28539.0,0.0896058]
[1680406749778,0.1749628,28540.0,28530.0,0.3007]
[1680406750080,0.1749628,28540.0,28527.0,0.7007]
[1680406750081,0.0869,28533.0,28528.0,0.05]
[1680406750274,0.0869,28533.0,28528.0,0.1376]
[1680406751976,0.0869,28533.0,28530.0,0.002]
[1680406752373,0.0869,28533.0,28528.0,0.1376]
[1680406752578,0.0869,28533.0,28528.0,0.1576]
[1680406752980,0.0869,28533.0,28530.0,0.02]
[1680406753370,0.0869,28533.0,28528.0,0.1376]
[1680406753575,0.0869,28533.0,28528.0,0.1576]
[1680406753773,0.3007,28532.0,28528.0,0.1576]
[1680406753974,0.3007,28532.0,28530.0,0.02]
[1680406755573,0.3007,28532.0,28528.0,0.1576]
[1680406755977,0.3007,28532.0,28530.0,0.026]
[1680406756474,0.3007,28532.0,28528.0,0.1636]
[1680406756871,0.3007,28532.0,28528.0,0.1376]
[1680406757075,0.3007,28532.0,28530.0,0.026]
[1680406758678,0.3007,28532.0,28528.0,0.1636]
[1680406759081,0.3007,28532.0,28530.0,0.026]
[1680406759483,0.1376,28531.0,28530.0,0.026]
[1680406759678,0.1376,28531.0,28525.0,0.1371]
[1680406759679,0.1376,28531.0,28528.0,0.026]
[1680406759885,0.3007,28529.0,28528.0,0.026]
[1680406760081,0.3007,28529.0,28525.0,0.1371]
[1680406761278,0.3007,28529.0,28528.0,0.028]
[1680406761479,0.3007,28529.0,28525.0,0.1651]
[1680406762592,0.3007,28529.0,28528.0,0.028]
[1680406763279,0.3876,28529.0,28528.0,0.028]
[1680406763481,0.4376,28529.0,28528.0,0.028]
[1680406764187,0.4376,28529.0,28525.0,0.028]
[1680406764386,0.0876,28527.0,28525.0,0.028]
[1680406764589,0.3007,28526.0,28525.0,0.028]
[1680406764787,0.3007,28526.0,28524.0,0.05]
[1680406765190,0.3007,28526.0,28525.0,0.028]
[1680406765596,0.3007,28526.0,28524.0,0.078]
[1680406766087,0.3007,28526.0,28524.0,0.05]
[1680406766291,0.3007,28526.0,28525.0,0.028]
[1680406767392,0.3007,28526.0,28524.0,0.1371]
[1680406767393,0.3007,28526.0,28524.0,0.1651]
[1680406767993,0.3007,28526.0,28524.0,0.1371]
[1680406768293,0.3007,28526.0,28525.0,0.028]
[1680406768494,0.3007,28526.0,28524.0,0.1651]
[1680406768696,0.3007,28526.0,28524.0,0.1151]
[1680406772499,0.0877,28525.0,28524.0,0.028]
[1680406773396,0.0877,28525.0,28523.0,0.05]
[1680406773595,0.0877,28525.0,28524.0,0.028]
[1680406774399,0.0877,28525.0,28522.0,0.3507]
[1680406774598,0.0877,28525.0,28524.0,0.02]
[1680406778702,0.1377,28525.0,28524.0,0.02]
[1680406779003,0.0877,28525.0,28524.0,0.02]
[1680406779397,0.3884,28525.0,28524.0,0.02]
[1680406781598,0.3884,28525.0,28518.0,0.05]
[1680406781599,0.0872,28524.0,28518.0,0.05]
[1680406781800,0.3881,28521.0,28518.0,0.05]
[1680406781995,0.3007,28521.0,28517.0,0.05]
[1680406782305,0.0872,28519.0,28517.0,0.05]
[1680406782508,0.0872,28519.0,28518.0,0.024]
[1680406783106,0.0872,28519.0,28517.0,0.028]
[1680406783607,0.0882,28519.0,28518.0,0.028]
[1680406784006,0.0882,28519.0,28517.0,0.028]
[1680406785209,0.0882,28519.0,28518.0,0.028]
[1680406785998,0.0882,28519.0,28517.0,0.028]
[1680406786409,0.0882,28519.0,28518.0,0.028]
[1680406786810,0.0872,28519.0,28515.0,0.05]
[1680406787012,0.0882,28519.0,28517.0,0.028]
[1680406788005,0.3007,28518.0,28514.0,0.137]
[1680406788205,0.3007,28518.0,28515.0,0.05]
[1680406788411,0.3007,28518.0,28517.0,0.024]
[1680406789304,0.3017,28518.0,28515.0,0.05]
[1680406789707,0.3007,28518.0,28517.0,0.028]
[1680406790009,0.3017,28518.0,28517.0,0.028]
[1680406791212,0.3017,28518.0,28515.0,0.078]
[1680406791407,0.3007,28518.0,28515.0,0.05]
[1680406791712,0.3017,28518.0,28517.0,0.028]
[1680406792413,0.3007,28518.0,28515.0,0.05]
[1680406792716,0.3007,28518.0,28515.0,0.078]
[1680406792717,0.3017,28518.0,28515.0,0.078]
[1680406793603,0.3007,28518.0,28514.0,0.137]
[1680406793806,0.3017,28518.0,28517.0,0.028]
[1680406794006,0.3007,28518.0,28515.0,0.05]
[1680406794213,0.3007,28518.0,28515.0,0.078]
[1680406794214,0.3017,28518.0,28515.0,0.078]
[1680406794715,0.30160096,28518.0,28517.0,0.028]
[1680406795013,0.30060096,28518.0,28515.0,0.05]
[1680406795213,0.30160096,28518.0,28515.0,0.078]
[1680406795512,0.30060096,28518.0,28515.0,0.05]
[1680406795710,0.30160096,28518.0,28517.0,0.028]
[1680406796613,0.30060096,28518.0,28515.0,0.05]
[1680406796816,0.0877,28516.0,28515.0,0.028]
[1680406797014,0.0874,28516.0,28512.0,0.0877]
[1680406797216,0.0874,28516.0,28513.0,0.05]
[1680406797419,0.3007,28515.0,28513.0,0.05]
[1680406798219,0.3007,28515.0,28513.0,0.078]
[1680406798907,0.0869,28514.0,28513.0,0.078]
[1680406799618,0.0869,28514.0,28513.0,0.028]
[1680406799911,0.0869,28514.0,28511.0,0.05]
[1680406800213,0.0879,28514.0,28513.0,0.028]
[1680406800617,0.001,28514.0,28513.0,0.1651]
[1680406801008,0.001,28514.0,28513.0,0.1371]
[1680406801408,0.0871,28520.0,28514.0,0.05]
[1680406801615,0.0871,28520.0,28517.0,0.05]
[1680406802607,0.0881,28520.0,28517.0,0.068]
[1680406807014,0.001,28520.0,28518.0,0.0871]
[1680406807216,0.001,28520.0,28519.0,0.05]
[1680406808419,0.001,28520.0,28519.0,0.068]
[1680406808821,0.001,28520.0,28519.0,0.018]
[1680406810522,0.0887,28520.0,28519.0,0.018]
[1680406817932,0.3894,28520.0,28519.0,0.018]
[1680406819529,0.0887,28520.0,28519.0,0.018]
[1680406822534,0.0709,28520.0,28519.0,0.018]
[1680406827141,0.0706,28520.0,28519.0,0.0881]
[1680406829242,0.071,28520.0,28519.0,0.018]
[1680406834857,0.071,28520.0,28517.0,0.0701]
[1680406835052,0.0694,28518.0,28517.0,0.0701]
[1680406835953,0.0694,28518.0,28517.0,0.0821]
[1680406836151,0.0694,28518.0,28517.0,0.0701]
[1680406836350,0.0714,28518.0,28517.0,0.0821]
[1680406836957,0.0721,28518.0,28517.0,0.012]
[1680406838750,0.0721,28518.0,28515.0,0.0701]
[1680406838751,0.0701,28518.0,28515.0,0.0701]
[1680406838951,0.002,28518.0,28517.0,0.011]
[1680406839153,0.0721,28518.0,28517.0,0.011]
[1680406839654,0.0701,28518.0,28516.0,0.05]
[1680406839851,0.001,28518.0,28517.0,0.009]
[1680406840052,0.0704,28518.0,28517.0,0.009]
[1680406840452,0.0711,28518.0,28517.0,0.0791]
[1680406847155,0.0709,28518.0,28517.0,0.009]
[1680406849950,0.3716,28518.0,28517.0,0.009]
[1680406850356,0.3716,28518.0,28513.0,0.0701]
[1680406850357,0.05,28517.0,28513.0,0.0701]
[1680406850661,0.0701,28515.0,28513.0,0.0701]
[1680406851453,0.0701,28514.0,28513.0,0.003]
[1680406853064,0.0731,28514.0,28513.0,0.003]
[1680406856963,0.1431,28514.0,28513.0,0.003]
[1680406859361,0.05,28513.0,28509.0,0.0698]
[1680406859560,0.07,28510.0,28509.0,0.0698]
[1680406860264,0.0701,28510.0,28509.0,0.0698]
[1680406860462,0.0731,28510.0,28509.0,0.0698]
[1680406863667,0.0724,28510.0,28509.0,0.0701]
[1680406866972,0.0731,28510.0,28507.0,0.1195]
[1680406867267,0.0699,28508.0,28507.0,0.0695]
[1680406869072,0.0729,28508.0,28507.0,0.0695]
[1680406873776,0.0726,28508.0,28507.0,0.0699]
[1680406876978,0.003,28508.0,28507.0,0.0701]
[1680406877178,0.003,28508.0,28507.0,0.1201]
[1680406877676,0.003,28508.0,28507.0,0.4909]
[1680406881478,0.003,28508.0,28507.0,0.1902]
[1680406884184,0.003,28508.0,28507.0,0.4909]
[1680406884887,0.3007,28512.0,28508.0,0.05]
[1680406885184,0.3007,28512.0,28511.0,0.0701]
[1680406885383,0.3007,28512.0,28511.0,0.1201]
[1680406886279,0.3037,28512.0,28511.0,0.1231]
[1680406886478,0.0699,28516.0,28511.0,0.1929]
[1680406886678,0.0699,28516.0,28515.0,0.0698]
[1680406886874,0.0699,28516.0,28515.0,0.0701]
[1680406887073,0.3208,28519.0,28515.0,0.0701]
[1680406887074,0.0701,28518.0,28515.0,0.0701]
[1680406887286,0.0701,28518.0,28516.0,0.0695]
[1680406888881,0.0751,28518.0,28516.0,0.0705]
[1680406889387,0.0721,28518.0,28516.0,0.0755]
[1680406896086,0.0694,28517.0,28516.0,0.006]
[1680406896389,0.1194,28517.0,28516.0,0.006]
[1680406897184,0.0694,28517.0,28516.0,0.006]
[1680406897788,0.0694,28517.0,28513.0,0.4205]
[1680406897989,0.002,28517.0,28516.0,0.006]
[1680406898191,0.1216,28517.0,28516.0,0.006]
[1680406898388,0.0716,28517.0,28516.0,0.006]
[1680406901088,0.1216,28517.0,28513.0,0.0698]
[1680406901284,0.0701,28515.0,28513.0,0.0698]
[1680406902293,0.0731,28515.0,28513.0,0.0708]
[1680406903791,0.0731,28515.0,28514.0,0.0701]
[1680406904994,0.0731,28515.0,28514.0,0.0711]
[1680406909794,0.0721,28515.0,28514.0,0.0711]
[1680406912699,0.0711,28515.0,28514.0,0.0711]
[1680406916902,0.0711,28515.0,28514.0,0.001]
[1680406946919,0.001,28515.0,28514.0,0.0708]
[1680406948625,0.001,28515.0,28514.0,0.07069102]
[1680406956933,0.0704,28515.0,28514.0,0.07079102]
[1680406976942,0.0704,28515.0,28514.0,0.07099102]
[1680406981752,0.05,28514.0,28509.0,0.211]
[1680406981952,0.3007,28512.0,28509.0,0.211]
[1680406982147,0.3007,28512.0,28511.0,0.0701]
[1680406983549,0.3702,28512.0,28509.0,0.0708]
[1680406983747,0.4396,28510.0,28506.0,0.0701]
[1680406983947,0.0701,28507.0,28506.0,0.0701]
[1680406985554,0.0721,28507.0,28506.0,0.0701]
[1680406986949,0.0721,28507.0,28506.0,0.0698]
[1680406992857,0.3728,28507.0,28506.0,0.0698]
[1680406993960,0.3712,28507.0,28505.0,0.0701]
[1680406996165,0.0705,28507.0,28505.0,0.0701]
[1680406996364,0.3712,28507.0,28505.0,0.0701]
[1680406996962,0.0701,28506.0,28505.0,0.0701]
[1680406998464,0.0701,28506.0,28503.0,0.3007]
[1680406998465,0.1418,28506.0,28503.0,0.3007]
[1680406998765,0.0699,28504.0,28503.0,0.3708]
[1680406999763,0.0729,28504.0,28503.0,0.3708]
[1680407001067,0.0729,28504.0,28503.0,0.0701]
[1680407005162,0.1428,28504.0,28501.0,0.05]
[1680407005471,0.0701,28502.0,28501.0,0.05]
[1680407006866,0.003,28504.0,28501.0,0.1198]
[1680407007075,0.0731,28502.0,28501.0,0.1198]
[1680407007766,0.0731,28502.0,28501.0,0.07414313]
[1680407010676,0.0726,28502.0,28501.0,0.00434313]
[1680407011077,0.0726,28502.0,28498.0,0.1199]
[1680407011277,0.0695,28500.0,28498.0,0.1199]
[1680407012471,0.0696,28500.0,28498.0,0.0701]
[1680407012677,0.1201,28499.0,28496.0,0.05]
[1680407012870,0.0701,28497.0,28496.0,0.05]
[1680407013977,0.0731,28497.0,28496.0,0.05]
[1680407015073,0.0731,28497.0,28495.0,0.1201]
[1680407015274,0.0701,28496.0,28495.0,0.1201]
[1680407015866,0.0701,28496.0,28495.0,0.0701]
[1680407016073,0.0701,28496.0,28495.0,0.1201]
[1680407016475,0.0731,28496.0,28495.0,0.0701]
[1680407016871,0.073,28496.0,28494.0,0.0698]
[1680407017080,0.073,28496.0,28495.0,0.05]
[1680407017275,0.1431,28496.0,28495.0,0.05]
[1680407017473,0.1431,28496.0,28493.0,0.05]
[1680407017676,0.073,28496.0,28493.0,0.05]
[1680407017981,0.073,28496.0,28495.0,0.0701]
[1680407020086,0.073,28496.0,28495.0,0.07380797]
[1680407025486,0.0731,28496.0,28495.0,0.00370797]
[1680407025884,0.0731,28496.0,28493.0,0.1201]
[1680407026082,0.0694,28494.0,28493.0,0.1201]
[1680407026886,0.0701,28495.0,28493.0,0.1198]
[1680407027083,0.0701,28495.0,28494.0,0.0701]
[1680407027782,0.0731,28495.0,28494.0,0.0701]
[1680407032491,0.003,28495.0,28494.0,0.3708]
[1680407032797,0.0701,28502.0,28495.0,0.05]
[1680407033090,0.0701,28502.0,28501.0,0.0695]
[1680407034082,0.0731,28502.0,28501.0,0.0695]
[1680407034288,0.0731,28502.0,28501.0,0.0715]
[1680407035192,0.0731,28502.0,28501.0,0.07524593]
[1680407036992,0.0731,28502.0,28501.0,0.07584593]
[1680407044010,0.073,28502.0,28501.0,0.07584593]
[1680407047008,0.3738,28502.0,28501.0,0.00574593]
[1680407048000,0.4439,28502.0,28501.0,0.00574593]
[1680407048200,0.05,28501.0,28497.0,0.0699]
[1680407048499,0.0701,28498.0,28497.0,0.0699]
[1680407048807,0.1201,28498.0,28497.0,0.0699]
[1680407049006,0.0701,28498.0,28497.0,0.0699]
[1680407049610,0.0731,28498.0,28497.0,0.0709]
[1680407050312,0.0731,28498.0,28497.0,0.07417575]
[1680407050908,0.1928,28498.0,28493.0,0.1201]
[1680407051115,0.0695,28495.0,28493.0,0.1201]
[1680407052513,0.0725,28495.0,28493.0,0.1201]
[1680407053317,0.0725,28495.0,28493.0,0.0701]
[1680407054914,0.0694,28494.0,28493.0,0.0701]
[1680407055220,0.05,28493.0,28486.0,0.7996]
[1680407055415,0.05,28493.0,28481.0,0.3007]
[1680407055416,0.1398,28487.0,28481.0,0.3007]
[1680407055605,0.1398,28487.0,28483.0,0.05]
[1680407055606,0.0701,28484.0,28483.0,0.05]
[1680407055808,0.3007,28488.0,28483.0,0.1897]
[1680407056015,0.3007,28488.0,28484.0,0.3007]
[1680407056309,0.3007,28488.0,28485.0,0.05]
[1680407056506,0.0701,28487.0,28486.0,0.0695]
[1680407056914,0.07,28487.0,28485.0,0.1198]
[1680407057108,0.0694,28486.0,28485.0,0.4709]
[1680407057313,0.05,28494.0,28485.0,0.4709]
[1680407057314,0.1252846,28499.0,28487.0,0.4]
[1680407057508,0.3007,28497.0,28495.0,0.0701]
[1680407058511,0.3007,28497.0,28496.0,0.00240943]
[1680407058711,0.3738,28497.0,28496.0,0.00240943]
[1680407062522,0.3037,28497.0,28496.0,0.00240943]
[1680407063024,0.3037,28497.0,28493.0,0.1375]
[1680407063222,0.3037,28497.0,28493.0,0.0875]
[1680407064310,0.3007,28497.0,28493.0,0.0875]
[1680407064510,0.3037,28497.0,28493.0,0.0875]
[1680407065123,0.3037,28497.0,28494.0,0.00240862]
[1680407065324,0.3037,28497.0,28494.0,0.05240862]
[1680407065823,0.003,28497.0,28494.0,0.05240862]
[1680407066926,0.0877,28496.0,28494.0,0.00240862]
[1680407067123,0.0877,28496.0,28492.0,0.0877]
[1680407067313,0.0877,28496.0,28493.0,0.05]
[1680407068024,0.0907,28496.0,28493.0,0.05]
[1680407069933,0.0907,28496.0,28493.0,0.3507]
[1680407072434,0.003,28496.0,28495.0,0.0877]
[1680407077034,0.003,28496.0,28495.0,0.05]
[1680407078835,0.003,28496.0,28495.0,0.3507]
[1680407080134,0.003,28496.0,28495.0,0.35310675]
[1680407085441,0.003,28496.0,28495.0,0.30310675]
[1680407086539,0.0907,28496.0,28495.0,0.30310675]
[1680407087341,0.0907,28496.0,28495.0,0.00240675]
[1680407087734,0.0907,28496.0,28493.0,0.05]
[1680407088334,0.0907,28496.0,28492.0,0.3882]
[1680407088841,0.0877,28496.0,28493.0,0.05]
[1680407089043,0.0907,28496.0,28493.0,0.05]
[1680407089337,0.0877,28496.0,28493.0,0.05]
[1680407089542,0.0907,28496.0,28493.0,0.05]
[1680407092541,0.0907,28496.0,28492.0,0.3882]
[1680407092738,0.0907,28496.0,28493.0,0.05]
[1680407094943,0.0907,28496.0,28494.0,0.00240492]
[1680407103148,0.003,28496.0,28495.0,0.3884]
[1680407103347,0.003,28496.0,28495.0,0.4384]
[1680407105950,0.003,28496.0,28495.0,0.44078792]
[1680407106964,0.003,28496.0,28495.0,0.35308792]
[1680407115553,0.003,28496.0,28495.0,0.30308792]
[1680407121165,0.003,28496.0,28495.0,0.30708792]
[1680407122062,0.2129846,28498.0,28495.0,0.30308792]
[1680407122367,0.003,28496.0,28495.0,0.30708792]
[1680407123668,0.2139846,28498.0,28495.0,0.30708792]
[1680407124168,0.003,28496.0,28495.0,0.30708792]
[1680407124970,0.2139846,28498.0,28495.0,0.30708792]
[1680407125869,0.003,28496.0,28495.0,0.30708792]
[1680407126678,0.003,28496.0,28495.0,0.44478792]
[1680407127173,0.1262846,28498.0,28495.0,0.44478792]
[1680407127373,0.1262846,28498.0,28497.0,0.0699]
[1680407127574,0.1252846,28498.0,28497.0,0.0699]
[1680407127872,0.1252846,28498.0,28497.0,0.07228521]
[1680407128075,0.1262846,28498.0,28497.0,0.07228521]
[1680407128968,0.1272846,28498.0,28497.0,0.07628521]
[1680407130070,0.1252846,28498.0,28497.0,0.07628521]
[1680407130373,0.1282846,28498.0,28497.0,0.07628521]
[1680407136973,0.1949846,28498.0,28497.0,0.07248521]
[1680407137167,0.1959846,28498.0,28497.0,0.07648521]
[1680407137478,0.1949846,28498.0,28497.0,0.07248521]
[1680407137674,0.1979846,28498.0,28497.0,0.07648521]
[1680407146885,0.1282846,28498.0,28497.0,0.07598521]
[1680407154090,0.1282846,28498.0,28497.0,0.00638521]
[1680407154292,0.1984846,28498.0,28497.0,0.00638521]
[1680407154802,0.1974846,28498.0,28497.0,0.00638521]
[1680407155895,0.1954846,28498.0,28497.0,0.00238521]
[1680407156095,0.1964846,28498.0,28497.0,0.00638521]
[1680407156290,0.1964846,28498.0,28497.0,0.004]
[1680407156490,0.1964846,28498.0,28497.0,0.00638164]
[1680407158000,0.1954846,28498.0,28497.0,0.00238164]
[1680407158200,0.0712,28498.0,28497.0,0.004]
[1680407158895,0.0702,28498.0,28495.0,0.0701]
[1680407159104,0.16841465,28499.0,28497.0,0.001]
[1680407159297,0.19650686,28498.0,28497.0,0.001]
[1680407161606,0.19650686,28498.0,28495.0,0.0701]
[1680407161906,0.0697,28497.0,28495.0,0.0701]
[1680407162707,0.0697,28497.0,28495.0,0.0711]
[1680407163008,0.19600686,28497.0,28495.0,0.0701]
[1680407163207,0.19700686,28497.0,28495.0,0.0741]
[1680407167111,0.19730686,28497.0,28496.0,0.0702]
[1680407167500,0.19730686,28497.0,28496.0,0.07258026]
[1680407168310,0.19730686,28497.0,28496.0,0.07658026]
[1680407169908,0.19700686,28497.0,28496.0,0.00638026]
[1680407174509,0.05,28496.0,28493.0,0.3707]
[1680407174705,0.24637676,28496.0,28494.0,0.00208183]
[1680407174910,0.54647676,28495.0,28494.0,0.00208183]
[1680407175110,0.4202,28495.0,28494.0,0.00208183]
[1680407175310,0.05,28494.0,28491.0,0.0702]
[1680407175511,0.3704,28492.0,28491.0,0.0702]
[1680407177113,0.3737,28492.0,28491.0,0.001]
[1680407181210,0.4237,28492.0,28491.0,0.001]
[1680407182121,0.4237,28492.0,28491.0,0.00278911]
[1680407182421,0.4237,28492.0,28491.0,0.001]
[1680407184019,0.05,28491.0,28486.0,0.139]
[1680407184318,0.0696,28487.0,28486.0,0.0696]
[1680407186221,0.0726,28487.0,28486.0,0.0696]
[1680407187123,0.0732,28487.0,28486.0,0.0701]
[1680407188025,0.0722,28487.0,28486.0,0.0701]
[1680407192422,0.002,28487.0,28486.0,0.0702]
[1680407192722,0.0722,28487.0,28484.0,0.1199]
[1680407192921,0.0697,28486.0,28484.0,0.1199]
[1680407194125,0.3704,28486.0,28484.0,0.1199]
[1680407194622,0.3734,28486.0,28484.0,0.1199]
[1680407195023,0.3734,28486.0,28484.0,0.0699]
[1680407195226,0.3734,28486.0,28484.0,0.1199]
[1680407197429,0.3734,28486.0,28484.0,0.0699]
[1680407197626,0.3734,28486.0,28485.0,0.00149978]
[1680407197925,0.3734,28486.0,28485.0,0.05149978]
[1680407198730,0.3734,28486.0,28485.0,0.00149978]
[1680407200429,0.3734,28486.0,28484.0,0.07]
[1680407200625,0.0697,28485.0,28484.0,0.07]
[1680407201519,0.0727,28485.0,28484.0,0.07]
[1680407206934,0.0727,28485.0,28483.0,0.0702]
[1680407211734,0.0727,28485.0,28484.0,0.05]
[1680407211934,0.003,28485.0,28484.0,0.1195]
[1680407214535,0.0702,28491.0,28485.0,0.05]
[1680407214735,0.0702,28491.0,28490.0,0.0702]
[1680407215432,0.0762,28491.0,28490.0,0.0702]
[1680407215934,0.0762,28491.0,28490.0,0.07175704]
[1680407216736,0.0702,28491.0,28490.0,0.07375704]
[1680407216935,0.0712,28491.0,28490.0,0.00355704]
[1680407219534,0.0722,28491.0,28490.0,0.00355704]
[1680407221144,0.0702,28491.0,28490.0,0.00155704]
[1680407221441,0.0712,28491.0,28490.0,0.00355704]
[1680407223343,0.3719,28491.0,28490.0,0.00355704]
[1680407225736,0.4914,28491.0,28487.0,0.05]
[1680407226033,0.4914,28491.0,28486.0,0.0696]
[1680407226034,0.0697,28488.0,28486.0,0.0696]
[1680407227648,0.0727,28488.0,28487.0,0.00152059]
[1680407227846,0.0727,28488.0,28487.0,0.05152059]
[1680407230152,0.0727,28488.0,28487.0,0.00152059]
[1680407230948,0.3734,28488.0,28487.0,0.00152059]
[1680407234957,0.3734,28488.0,28484.0,0.1202]
[1680407235153,0.0697,28485.0,28484.0,0.1202]
[1680407235558,0.3704,28485.0,28480.0,0.0698]
[1680407235857,0.4406,28481.0,28478.0,0.0702]
[1680407236155,0.07,28479.0,28478.0,0.0702]
[1680407236954,0.0702,28481.0,28478.0,0.0699]
[1680407237258,0.0702,28481.0,28480.0,0.0702]
[1680407237562,0.3709,28481.0,28479.0,0.1202]
[1680407237754,0.0697,28480.0,28479.0,0.4209]
[1680407239456,0.0727,28480.0,28479.0,0.4219]
[1680407245961,0.003,28480.0,28479.0,0.4219]
[1680407271485,0.003,28480.0,28479.0,0.4915]
[1680407275191,0.0702,28484.0,28480.0,0.05]
[1680407275392,0.0702,28484.0,28483.0,0.0702]
[1680407275593,0.0702,28484.0,28483.0,0.1202]
[1680407276696,0.0732,28484.0,28483.0,0.1232]
[1680407276886,0.0732,28484.0,28483.0,0.1231]
[1680407280898,0.0732,28484.0,28483.0,0.0731]
[1680407281895,0.0702,28484.0,28483.0,0.0701]
[1680407282100,0.0732,28484.0,28483.0,0.0731]
[1680407282300,0.0702,28484.0,28483.0,0.0701]
[1680407282496,0.0722,28484.0,28483.0,0.0731]
[1680407283094,0.0722,28484.0,28483.0,0.1231]
[1680407284390,0.0722,28484.0,28483.0,0.0731]
[1680407284800,0.0732,28484.0,28483.0,0.0731]
[1680407285001,0.0732,28484.0,28483.0,0.1231]
[1680407285300,0.0732,28484.0,28483.0,0.0731]
[1680407285701,0.0722,28484.0,28483.0,0.0731]
[1680407287002,0.0722,28484.0,28483.0,0.0726]
[1680407296909,0.072,28484.0,28483.0,0.003]
[1680407306216,0.072,28484.0,28483.0,0.053]
[1680407306912,0.0722,28484.0,28483.0,0.073]
[1680407324733,0.0722,28484.0,28483.0,0.0732]
[1680407327033,0.072,28484.0,28483.0,0.003]
[1680407328436,0.072,28484.0,28483.0,0.00281673]
[1680407336945,0.072,28484.0,28483.0,0.07231673]
[1680407341756,0.072,28484.0,28483.0,0.00281673]
[1680407351760,0.002,28484.0,28483.0,0.12241673]
[1680407354868,0.002,28484.0,28483.0,0.19261673]
[1680407366869,0.002,28484.0,28483.0,0.19241673]
[1680407370973,0.0715,28484.0,28483.0,0.07301673]
[1680407375476,0.072,28484.0,28483.0,0.07301673]
[1680407376879,0.002,28484.0,28483.0,0.07301673]
[1680407378588,0.002,28484.0,28483.0,0.07280983]
[1680407386982,0.0715,28484.0,28483.0,0.00260983]
[1680407387486,0.05,28483.0,28479.0,0.3709]
[1680407387692,0.0702,28480.0,28479.0,0.0702]
[1680407389491,0.3709,28480.0,28479.0,0.0702]
[1680407389988,0.3709,28480.0,28479.0,0.0712]
[1680407390687,0.3739,28480.0,28479.0,0.0712]
[1680407395098,0.0732,28480.0,28479.0,0.0712]
[1680407397004,0.0727,28480.0,28479.0,0.0712]
[1680407408400,0.0727,28480.0,28479.0,0.3719]
[1680407410613,0.003,28480.0,28479.0,0.3719]
[1680407410813,0.003,28480.0,28479.0,0.4219]
[1680407417007,0.003,28480.0,28479.0,0.4915]
[1680407420716,0.49669366,28486.0,28481.0,0.05]
[1680407421017,0.49669366,28486.0,28485.0,0.0699]
[1680407421712,0.49769366,28486.0,28485.0,0.0699]
[1680407422214,0.49769366,28486.0,28485.0,0.0739]
[1680407424811,0.3714,28486.0,28485.0,0.0739]
[1680407427019,0.3712,28486.0,28485.0,0.004]
[1680407432024,0.53961465,28486.0,28485.0,0.004]
[1680407433127,0.53861465,28486.0,28485.0,0.001]
[1680407433621,0.54461465,28486.0,28483.0,0.0702]
[1680407433820,0.19584848,28484.0,28483.0,0.0702]
[1680407434526,0.19584848,28484.0,28483.0,0.0712]
[1680407435625,0.19584848,28484.0,28483.0,0.0702]
[1680407435829,0.19684848,28484.0,28483.0,0.0742]
[1680407436924,0.19744848,28484.0,28483.0,0.004]
[1680407438629,0.19644848,28484.0,28483.0,0.001]
[1680407440328,0.49714848,28484.0,28483.0,0.001]
[1680407441129,0.3709,28484.0,28483.0,0.001]
[1680407441531,0.3719,28484.0,28483.0,0.004]
[1680407442026,0.49818046,28484.0,28483.0,0.004]
[1680407443534,0.3719,28484.0,28483.0,0.004]
[1680407447035,0.4981879,28484.0,28483.0,0.0741]
[1680407448027,0.4279879,28484.0,28483.0,0.1444]
[1680407456141,0.001,28484.0,28483.0,0.1444]
[1680407456443,0.001,28484.0,28483.0,0.4951]
[1680407457039,0.001,28484.0,28483.0,0.6355]
[1680407457639,0.1262879,28487.0,28484.0,0.05]
[1680407457946,0.1262879,28488.0,28486.0,0.5808]
[1680407458248,0.1262879,28488.0,28487.0,0.1891]
[1680407459334,0.019,28488.0,28487.0,0.4898]
[1680407459745,0.019,28488.0,28487.0,0.4908]